fUST/lending_fUST_20250101
["ID","MTS","AMOUNT","RATE_DAILY","PERIOD"]
[347295863,1735663851494,-153.0,0.00020055,2]
[347295864,1735663851504,-10369.85477377,0.00020058,2]
[347295865,1735663851514,-4872.53160345,0.00020173,2]
[347295866,1735663851523,-151.0,0.000202,3]
[347295867,1735663851533,-558.19453967,0.00020273,3]
[347295868,1735663851543,-500.0,0.00020273,3]
[347295869,1735663851552,-543.53,0.00020273,3]
[347295870,1735663851562,-500.0,0.00020273,3]
[347295871,1735663851571,-553.7,0.00020273,3]
[347295872,1735663851581,-500.0,0.00020273,3]
[347295873,1735663851590,-1001.83,0.00020273,3]
[347295874,1735663851599,-329.61462002,0.00020273,3]
[347295876,1735663950643,394.195069,0.00013973,2]
[347295877,1735664070514,160.0,0.00023873,120]
[347295879,1735664190755,160.0,0.00024568,120]
[347295881,1735664550710,160.0,0.00023568,120]
[347295883,1735664672738,10000.0,0.0002,120]
[347295884,1735664732435,160.0,0.00023879,120]
[347295885,1735664848718,394.485316,0.00013973,2]
[347295917,1735665032194,-960.87104564,0.00015511,2]
[347295918,1735665032204,-39.01695436,0.00015668,2]
[347295919,1735665032253,-460.98304564,0.00015668,2]
[347295920,1735665032264,-153.0,0.0001681,2]
[347295921,1735665032275,-153.0,0.0001681,2]
[347295922,1735665032287,-153.0,0.0001681,2]
[347295923,1735665032298,-153.0,0.0001681,2]
[347295924,1735665032309,-2721.6381123,0.00018,2]
[347295925,1735665032320,-300.0,0.00018133,2]
[347295926,1735665032331,-12006.4489873,0.00018134,2]
[347295927,1735665032343,-9992.74976623,0.00018134,2]
[347295928,1735665032355,-782.98442445,0.00018134,2]
[347296013,1735665037992,-285.43980486,0.00018134,2]
[347296014,1735665038049,-1832.37701716,0.00018134,2]
[347296015,1735665038058,-3577.54225415,0.00018878,2]
[347296016,1735665038068,-151.00800485,0.00018978,2]
[347296017,1735665038078,-697.58144028,0.00019073,2]
[347296018,1735665038087,-12154.1766695,0.00019078,2]
[347296026,1735665038166,-18274.88918351,0.00019078,2]
[347296028,1735665038175,-500.0,0.00019173,2]
[347296029,1735665038185,-517.74143387,0.00019173,2]
[347296031,1735665038194,-500.0,0.00019173,2]
[347296032,1735665038204,-633.64993133,0.00019173,2]
[347296033,1735665038214,-500.0,0.00019173,2]
[347296034,1735665038223,-550.0043724,0.00019173,2]
[347296035,1735665038232,-500.0,0.00019173,2]
[347296036,1735665038241,-392.768,0.00019177,2]
[347296038,1735665038251,-212.90888944,0.00019177,2]
[347296040,1735665038260,-500.0,0.00019177,2]
[347296042,1735665038269,-636.95644865,0.00019177,2]
[347296043,1735665038279,-235.95376031,0.00019177,2]
[347296044,1735665038288,-500.0,0.00019177,2]
[347296045,1735665038297,-500.0,0.00019177,2]
[347296046,1735665038307,-500.0,0.00019177,2]
[347296047,1735665038316,-223.17112034,0.00019177,2]
[347296048,1735665038325,-500.0,0.00019177,2]
[347296049,1735665038334,-500.0,0.00019177,2]
[347296050,1735665038343,-500.0,0.00019177,2]
[347296051,1735665038352,-609.92023882,0.00019177,2]
[347296052,1735665038361,-500.0,0.00019177,2]
[347296053,1735665038371,-500.0,0.00019177,2]
[347296054,1735665038379,-500.0,0.00019177,2]
[347296055,1735665038389,-500.0,0.00019177,2]
[347296056,1735665038397,-500.0,0.00019177,2]
[347296057,1735665038533,-500.0,0.00019177,2]
[347296058,1735665038544,-179.48863944,0.00019177,2]
[347296059,1735665038555,-500.0,0.00019177,2]
[347296060,1735665038564,-500.0,0.00019177,2]
[347296061,1735665038573,-328.14581956,0.00019177,2]
[347296062,1735665038582,-500.0,0.00019177,2]
[347296063,1735665038592,-500.0,0.00019178,2]
[347296064,1735665038601,-500.0,0.00019178,2]
[347296065,1735665038611,-500.0,0.00019178,2]
[347296066,1735665038620,-500.0,0.00019178,2]
[347296067,1735665038630,-894.59,0.00019178,2]
[347296068,1735665038639,-500.89295916,0.00019178,2]
[347296069,1735665038648,-634.98,0.00019178,2]
[347296070,1735665038657,-500.0,0.00019178,2]
[347296071,1735665038667,-500.0,0.00019178,2]
[347296072,1735665038676,-500.0,0.00019178,2]
[347296073,1735665038686,-530.14083823,0.00019178,2]
[347296074,1735665038695,-500.0,0.00019178,2]
[347296075,1735665038705,-500.0,0.00019178,2]
[347296076,1735665038716,-500.43488682,0.00019178,2]
[347296077,1735665038725,-500.0,0.00019178,2]
[347296078,1735665038735,-500.0,0.00019178,2]
[347296079,1735665038744,-500.0,0.00019178,2]
[347296080,1735665038753,-500.0,0.00019178,2]
[347296081,1735665038763,-500.0,0.00019178,2]
[347296082,1735665038772,-188.0,0.00019178,2]
[347296083,1735665038781,-503.39479889,0.00019178,2]
[347296084,1735665038790,-500.0,0.00019178,2]
[347296085,1735665038799,-502.06113452,0.00019178,2]
[347296086,1735665038809,-500.0,0.00019178,2]
[347296087,1735665038818,-500.0,0.00019178,2]
[347296088,1735665038827,-390.90425513,0.00019178,2]
[347296089,1735665038836,-500.0,0.00019178,2]
[347296090,1735665038846,-500.0,0.00019178,2]
[347296091,1735665038855,-500.0,0.00019178,2]
[347296092,1735665038865,-500.0,0.00019178,2]
[347296093,1735665038875,-500.0,0.00019178,2]
[347296094,1735665038884,-477.12672251,0.00019178,2]
[347296095,1735665038893,-500.0,0.00019178,2]
[347296096,1735665038902,-500.0,0.00019178,2]
[347296097,1735665038911,-500.0,0.00019178,2]
[347296098,1735665038921,-500.0,0.00019178,2]
[347296099,1735665038930,-500.0,0.00019178,2]
[347296100,1735665038939,-500.0,0.00019178,2]
[347296101,1735665038948,-500.0,0.00019178,2]
[347296102,1735665038958,-510.50663106,0.00019178,2]
[347296103,1735665038968,-607.75,0.00019178,2]
[347296104,1735665038977,-500.0,0.00019178,2]
[347296105,1735665038987,-500.0,0.00019178,2]
[347296106,1735665038996,-529.34,0.00019178,2]
[347296107,1735665039005,-500.0,0.00019178,2]
[347296108,1735665039014,-500.0,0.00019178,2]
[347296109,1735665039023,-500.0,0.00019178,2]
[347296110,1735665039033,-500.24047302,0.00019178,2]
[347296111,1735665039042,-500.0,0.00019178,2]
[347296112,1735665039051,-500.0,0.00019178,2]
[347296113,1735665039060,-500.0,0.00019178,2]
[347296114,1735665039069,-960.01,0.00019178,2]
[347296115,1735665039078,-500.0,0.00019178,2]
[347296116,1735665039088,-500.0,0.00019178,2]
[347296117,1735665039097,-619.23,0.00019178,2]
[347296118,1735665039106,-500.0,0.00019178,2]
[347296119,1735665039115,-500.0,0.00019178,2]
[347296120,1735665039125,-500.0,0.00019178,2]
[347296121,1735665039134,-505.17298432,0.00019178,2]
[347296122,1735665039144,-500.0,0.00019178,2]
[347296123,1735665039153,-500.0,0.00019178,2]
[347296124,1735665039162,-500.0,0.00019178,2]
[347296125,1735665039172,-500.0,0.00019178,2]
[347296126,1735665039181,-500.0,0.00019178,2]
[347296127,1735665039190,-500.0,0.00019178,2]
[347296128,1735665039200,-500.0,0.00019178,2]
[347296129,1735665039209,-502.52809694,0.00019178,2]
[347296130,1735665039219,-500.0,0.00019178,2]
[347296131,1735665039229,-500.0,0.00019178,2]
[347296132,1735665039238,-958.05,0.00019178,2]
[347296133,1735665039248,-500.0,0.00019178,2]
[347296134,1735665039257,-500.0,0.00019178,2]
[347296135,1735665039267,-1787.15,0.00019178,2]
[347296136,1735665039277,-500.0,0.00019178,2]
[347296137,1735665039286,-500.0,0.00019178,2]
[347296138,1735665039295,-500.0,0.00019178,2]
[347296139,1735665039305,-500.0,0.00019178,2]
[347296140,1735665039314,-500.0,0.00019178,2]
[347296141,1735665039323,-500.0,0.00019178,2]
[347296142,1735665039333,-261.67804982,0.00019178,2]
[347296143,1735665039342,-500.0,0.00019178,2]
[347296144,1735665039351,-502.4753739,0.00019178,2]
[347296145,1735665039361,-500.0,0.00019178,2]
[347296146,1735665039371,-500.0,0.00019178,2]
[347296147,1735665039381,-500.0,0.00019178,2]
[347296148,1735665039390,-200.32926924,0.00019178,2]
[347296149,1735665039400,-216.94715489,0.00019178,2]
[347296150,1735665039409,-500.0,0.00019178,2]
[347296151,1735665039419,-502.94474416,0.00019178,2]
[347296152,1735665039429,-500.0,0.00019178,2]
[347296153,1735665039439,-500.0,0.00019178,2]
[347296154,1735665039448,-500.0,0.00019178,2]
[347296155,1735665039458,-725.25,0.00019178,2]
[347296156,1735665039471,-500.0,0.00019178,2]
[347296157,1735665039480,-500.0,0.00019178,2]
[347296158,1735665039490,-498.60924069,0.00019178,2]
[347296159,1735665039500,-500.0,0.00019178,2]
[347296160,1735665039510,-713.09,0.00019178,2]
[347296161,1735665039520,-944.33,0.00019178,2]
[347296162,1735665039531,-500.0,0.00019178,2]
[347296163,1735665039540,-500.0,0.00019178,2]
[347296164,1735665039551,-500.0,0.00019178,2]
[347296165,1735665039560,-503.00950594,0.00019178,2]
[347296167,1735665039570,-500.0,0.00019178,2]
[347296169,1735665039579,-500.0,0.00019178,2]
[347296171,1735665039589,-500.0,0.00019178,2]
[347296173,1735665039598,-500.0,0.00019178,2]
[347296174,1735665039607,-500.0,0.00019178,2]
[347296175,1735665039617,-500.0,0.00019178,2]
[347296176,1735665039627,-1127.56,0.00019178,2]
[347296177,1735665039636,-500.0,0.00019178,2]
[347296179,1735665039646,-502.51267261,0.00019178,2]
[347296181,1735665039655,-500.0,0.00019178,2]
[347296183,1735665039665,-500.0,0.00019178,2]
[347296184,1735665039675,-500.0,0.00019178,2]
[347296185,1735665039684,-500.0,0.00019178,2]
[347296186,1735665039693,-498.63295011,0.00019178,2]
[347296187,1735665039703,-500.0,0.00019178,2]
[347296188,1735665039714,-533.47,0.00019178,2]
[347296189,1735665039723,-500.0,0.00019178,2]
[347296190,1735665039732,-502.82749129,0.00019178,2]
[347296191,1735665039741,-500.0,0.00019178,2]
[347296192,1735665039751,-500.0,0.00019178,2]
[347296193,1735665039760,-503.45182854,0.00019178,2]
[347296195,1735665039769,-500.0,0.00019178,2]
[347296197,1735665039779,-500.0,0.00019178,2]
[347296199,1735665039788,-504.71921326,0.00019178,2]
[347296201,1735665039798,-500.0,0.00019178,2]
[347296202,1735665039807,-560.98,0.00019178,2]
[347296204,1735665039816,-500.0,0.00019178,2]
[347296206,1735665039826,-500.0,0.00019178,2]
[347296207,1735665039835,-500.0,0.00019178,2]
[347296208,1735665039844,-500.0,0.00019178,2]
[347296210,1735665039853,-500.0,0.00019178,2]
[347296211,1735665039863,-500.0,0.00019178,2]
[347296213,1735665039872,-500.0,0.00019178,2]
[347296215,1735665039882,-500.0,0.00019178,2]
[347296216,1735665039892,-500.0,0.00019178,2]
[347296218,1735665039901,-500.0,0.00019178,2]
[347296219,1735665039911,-500.0,0.00019178,2]
[347296220,1735665039920,-500.0,0.00019178,2]
[347296221,1735665039930,-500.0,0.00019178,2]
[347296222,1735665039939,-666.38,0.00019178,2]
[347296224,1735665039948,-500.0,0.00019178,2]
[347296225,1735665039957,-500.0,0.00019178,2]
[347296226,1735665039968,-504.93773306,0.00019178,2]
[347296227,1735665039977,-500.0,0.00019178,2]
[347296228,1735665039986,-500.0,0.00019178,2]
[347296229,1735665039995,-9882.34,0.00019178,2]
[347296231,1735665040004,-158.07068626,0.00019178,2]
[347296232,1735665040014,-500.0,0.00019178,2]
[347296233,1735665040022,-500.0,0.00019178,2]
[347296234,1735665040032,-500.0,0.00019178,2]
[347296235,1735665040042,-500.0,0.00019178,2]
[347296236,1735665040051,-500.0,0.00019178,2]
[347296237,1735665040060,-500.0,0.00019178,2]
[347296238,1735665040070,-500.0,0.00019178,2]
[347296239,1735665040079,-512.38,0.00019178,2]
[347296240,1735665040088,-500.0,0.00019178,2]
[347296241,1735665040097,-500.0,0.00019178,2]
[347296242,1735665040106,-500.0,0.00019178,2]
[347296243,1735665040115,-500.0,0.00019178,2]
[347296244,1735665040124,-682.37,0.00019178,2]
[347296245,1735665040133,-508.5357392,0.00019178,2]
[347296246,1735665040142,-500.0,0.00019178,2]
[347296247,1735665040151,-347.20816199,0.00019178,2]
[347296248,1735665040160,-500.0,0.00019178,2]
[347296249,1735665040169,-267.91462043,0.00019178,2]
[347296250,1735665040178,-505.90057879,0.00019178,2]
[347296251,1735665040187,-500.0,0.00019178,2]
[347296252,1735665040196,-500.0,0.00019178,2]
[347296253,1735665040205,-500.0,0.00019178,2]
[347296254,1735665040215,-500.0,0.00019178,2]
[347296255,1735665040224,-500.0,0.00019178,2]
[347296256,1735665040233,-500.0,0.00019178,2]
[347296257,1735665040242,-500.0,0.00019178,2]
[347296258,1735665040251,-500.0,0.00019178,2]
[347296259,1735665040260,-1130.05,0.00019178,2]
[347296260,1735665040270,-500.0,0.00019178,2]
[347296261,1735665040279,-500.0,0.00019178,2]
[347296262,1735665040288,-264.68147103,0.00019178,2]
[347296263,1735665040297,-500.0,0.00019178,2]
[347296264,1735665040306,-1525.91,0.00019178,2]
[347296265,1735665040315,-500.0,0.00019178,2]
[347296266,1735665040325,-500.0,0.00019178,2]
[347296267,1735665040334,-500.0,0.00019178,2]
[347296269,1735665040343,-500.0,0.00019178,2]
[347296271,1735665040352,-500.0,0.00019178,2]
[347296273,1735665040361,-558.85,0.00019178,2]
[347296274,1735665040370,-453.465491,0.00019178,2]
[347296276,1735665040379,-624.39828362,0.00019178,2]
[347296277,1735665040388,-500.0,0.00019178,2]
[347296278,1735665040397,-500.0,0.00019178,2]
[347296279,1735665040407,-500.0,0.00019178,2]
[347296280,1735665040416,-500.0,0.00019178,2]
[347296281,1735665040425,-530.17017517,0.00019178,2]
[347296283,1735665040435,-500.0,0.00019178,2]
[347296284,1735665040444,-500.0,0.00019178,2]
[347296285,1735665040453,-500.0,0.00019178,2]
[347296286,1735665040464,-590.46434558,0.00019178,2]
[347296287,1735665040475,-1310.93,0.00019178,2]
[347296288,1735665040484,-500.0,0.00019178,2]
[347296289,1735665040493,-500.0,0.00019178,2]
[347296290,1735665040503,-500.0,0.00019178,2]
[347296291,1735665040513,-516.5,0.00019178,2]
[347296292,1735665040522,-500.0,0.00019178,2]
[347296293,1735665040531,-500.0,0.00019178,2]
[347296294,1735665040541,-500.0,0.00019178,2]
[347296295,1735665040551,-383.65523745,0.00019178,2]
[347296296,1735665040560,-500.0,0.00019178,2]
[347296297,1735665040569,-500.0,0.00019178,2]
[347296298,1735665040578,-626.60818946,0.00019178,2]
[347296299,1735665040587,-500.0,0.00019178,2]
[347296300,1735665040597,-500.0,0.00019178,2]
[347296301,1735665040606,-500.0,0.00019178,2]
[347296302,1735665040616,-500.0,0.00019178,2]
[347296303,1735665040719,-543.54,0.00019178,2]
[347296304,1735665040729,-769.83,0.00019178,2]
[347296305,1735665040739,-500.0,0.00019178,2]
[347296306,1735665040748,-501.97774642,0.00019178,2]
[347296307,1735665040757,-500.0,0.00019178,2]
[347296308,1735665040766,-500.0,0.00019178,2]
[347296309,1735665040776,-500.0,0.00019178,2]
[347296310,1735665040785,-509.72166188,0.00019178,2]
[347296311,1735665040794,-500.0,0.00019178,2]
[347296312,1735665040803,-500.0,0.00019178,2]
[347296313,1735665040812,-500.0,0.00019178,2]
[347296314,1735665040822,-627.66,0.00019178,2]
[347296315,1735665040831,-500.0,0.00019178,2]
[347296316,1735665040840,-500.0,0.00019178,2]
[347296317,1735665040849,-1289.83,0.00019178,2]
[347296318,1735665040858,-505.32890224,0.00019178,2]
[347296319,1735665040867,-500.0,0.00019178,2]
[347296320,1735665040877,-500.0,0.00019178,2]
[347296321,1735665040886,-553.41,0.00019178,2]
[347296322,1735665040895,-300.36621339,0.00019178,2]
[347296323,1735665040904,-888.44,0.00019178,2]
[347296324,1735665040913,-500.0,0.00019178,2]
[347296325,1735665040922,-913.82,0.00019178,2]
[347296326,1735665040931,-500.0,0.00019178,2]
[347296327,1735665040941,-500.0,0.00019178,2]
[347296328,1735665040950,-500.0,0.00019178,2]
[347296329,1735665040959,-500.0,0.00019178,2]
[347296330,1735665040969,-500.0,0.00019178,2]
[347296331,1735665040978,-500.0,0.00019178,2]
[347296332,1735665040987,-689.33,0.00019178,2]
[347296333,1735665040996,-500.0,0.00019178,2]
[347296334,1735665041005,-500.0,0.00019178,2]
[347296335,1735665041014,-500.0,0.00019178,2]
[347296336,1735665041024,-500.0,0.00019178,2]
[347296337,1735665041033,-510.45838739,0.00019178,2]
[347296338,1735665041042,-6404.05,0.00019178,2]
[347296339,1735665041052,-500.0,0.00019178,2]
[347296340,1735665041061,-500.0,0.00019178,2]
[347296341,1735665041070,-500.0,0.00019178,2]
[347296342,1735665041079,-1694.83,0.00019178,2]
[347296343,1735665041088,-545.50570438,0.00019178,2]
[347296344,1735665041098,-500.0,0.00019178,2]
[347296345,1735665041107,-504.74346387,0.00019178,2]
[347296346,1735665041116,-500.0,0.00019178,2]
[347296347,1735665041125,-500.0,0.00019178,2]
[347296348,1735665041134,-502.0730327,0.00019178,2]
[347296349,1735665041143,-500.0,0.00019178,2]
[347296350,1735665041153,-462.29141388,0.00019178,2]
[347296351,1735665041162,-500.0,0.00019178,2]
[347296352,1735665041171,-500.0,0.00019178,2]
[347296353,1735665041181,-500.0,0.00019178,2]
[347296354,1735665041191,-520.50189285,0.00019178,2]
[347296355,1735665041200,-730.85,0.00019178,2]
[347296356,1735665041209,-500.0,0.00019178,2]
[347296357,1735665041224,-500.0,0.00019178,2]
[347296358,1735665041233,-502.27925625,0.00019178,2]
[347296359,1735665041243,-500.0,0.00019178,2]
[347296360,1735665041252,-527.97128203,0.00019178,2]
[347296361,1735665041261,-500.0,0.00019178,2]
[347296362,1735665041270,-278.31624683,0.00019178,2]
[347296363,1735665041279,-500.0,0.00019178,2]
[347296364,1735665041289,-500.0,0.00019178,2]
[347296365,1735665041298,-500.0,0.00019178,2]
[347296366,1735665041308,-500.0,0.00019178,2]
[347296367,1735665041318,-500.0,0.00019178,2]
[347296368,1735665041327,-500.0,0.00019178,2]
[347296369,1735665041337,-500.0,0.00019178,2]
[347296370,1735665041346,-991.1,0.00019178,2]
[347296371,1735665041356,-500.0,0.00019178,2]
[347296372,1735665041365,-500.0,0.00019178,2]
[347296373,1735665041375,-500.0,0.00019178,2]
[347296374,1735665041384,-623.13,0.00019178,2]
[347296375,1735665041394,-500.0,0.00019178,2]
[347296376,1735665041403,-500.0,0.00019178,2]
[347296377,1735665041412,-1665.4,0.00019178,2]
[347296378,1735665041421,-3433.1,0.00019178,2]
[347296379,1735665041430,-500.0,0.00019178,2]
[347296380,1735665041440,-500.0,0.00019178,2]
[347296381,1735665041449,-500.0,0.00019178,2]
[347296382,1735665041460,-500.0,0.00019178,2]
[347296383,1735665041474,-500.0,0.00019178,2]
[347296384,1735665041484,-500.0,0.00019178,2]
[347296385,1735665041493,-500.0,0.00019178,2]
[347296386,1735665041503,-307.13185755,0.00019178,2]
[347296387,1735665041514,-500.0,0.00019178,2]
[347296388,1735665041523,-500.0,0.00019178,2]
[347296389,1735665041533,-500.0,0.00019178,2]
[347296390,1735665041542,-915.57,0.00019178,2]
[347296391,1735665041552,-500.0,0.00019178,2]
[347296392,1735665041563,-1142.69,0.00019178,2]
[347296393,1735665041572,-502.42403459,0.00019178,2]
[347296394,1735665041581,-500.0,0.00019178,2]
[347296395,1735665041591,-255.64925741,0.00019178,2]
[347296396,1735665041600,-500.0,0.00019178,2]
[347296397,1735665041610,-500.0,0.00019178,2]
[347296398,1735665041619,-504.3404802,0.00019178,2]
[347296399,1735665041629,-500.0,0.00019178,2]
[347296400,1735665041638,-500.0,0.00019178,2]
[347296401,1735665041647,-503.43147803,0.00019178,2]
[347296402,1735665041656,-500.0,0.00019178,2]
[347296403,1735665041665,-959.18,0.00019178,2]
[347296404,1735665041675,-500.0,0.00019178,2]
[347296405,1735665041684,-500.0,0.00019178,2]
[347296406,1735665041693,-500.0,0.00019178,2]
[347296407,1735665041702,-500.0,0.00019178,2]
[347296408,1735665041713,-500.0,0.00019178,2]
[347296409,1735665041722,-1588.6,0.00019178,2]
[347296410,1735665041731,-504.74532257,0.00019178,2]
[347296411,1735665041740,-500.0,0.00019178,2]
[347296412,1735665041750,-535.8,0.00019178,2]
[347296413,1735665041759,-648.37,0.00019178,2]
[347296414,1735665041768,-500.0,0.00019178,2]
[347296415,1735665041777,-565.15,0.00019178,2]
[347296416,1735665041786,-818.49,0.00019178,2]
[347296417,1735665041795,-1764.41,0.00019178,2]
[347296418,1735665041805,-500.0,0.00019178,2]
[347296419,1735665041814,-500.0,0.00019178,2]
[347296420,1735665041823,-505.1481969,0.00019178,2]
[347296421,1735665041832,-500.0,0.00019178,2]
[347296422,1735665041842,-500.0,0.00019178,2]
[347296423,1735665041851,-500.0,0.00019178,2]
[347296424,1735665041860,-2158.29,0.00019178,2]
[347296425,1735665041869,-500.0,0.00019178,2]
[347296426,1735665041879,-3173.88,0.00019178,2]
[347296427,1735665041888,-500.0,0.00019178,2]
[347296428,1735665041898,-500.0,0.00019178,2]
[347296429,1735665041907,-500.0,0.00019178,2]
[347296430,1735665041917,-500.0,0.00019178,2]
[347296431,1735665041927,-48070.08,0.00019178,2]
[347296432,1735665041937,-500.0,0.00019178,2]
[347296433,1735665041946,-1009.69,0.00019178,2]
[347296434,1735665041955,-500.0,0.00019178,2]
[347296435,1735665041964,-1142.14,0.00019178,2]
[347296436,1735665041973,-500.0,0.00019178,2]
[347296437,1735665041982,-500.0,0.00019178,2]
[347296438,1735665041992,-501.08648061,0.00019178,2]
[347296439,1735665042001,-2159.63,0.00019178,2]
[347296440,1735665042010,-500.0,0.00019178,2]
[347296441,1735665042019,-500.0,0.00019178,2]
[347296442,1735665042029,-330.67279383,0.00019178,2]
[347296443,1735665042039,-339.4980726,0.00019178,2]
[347296444,1735665042048,-500.0,0.00019178,2]
[347296445,1735665042058,-500.0,0.00019178,2]
[347296446,1735665042068,-500.0,0.00019178,2]
[347296447,1735665042079,-500.0,0.00019178,2]
[347296448,1735665042088,-992.37,0.00019178,2]
[347296449,1735665042097,-500.0,0.00019178,2]
[347296450,1735665042107,-1741.6,0.00019178,2]
[347296451,1735665042116,-1116.32,0.00019178,2]
[347296452,1735665042127,-500.0,0.00019178,2]
[347296453,1735665042138,-500.0,0.00019178,2]
[347296454,1735665042147,-500.0,0.00019178,2]
[347296455,1735665042156,-500.0,0.00019178,2]
[347296456,1735665042165,-6066.18,0.00019178,2]
[347296457,1735665042174,-1258.11,0.00019178,2]
[347296458,1735665042183,-1088.29,0.00019178,2]
[347296459,1735665042192,-894.97,0.00019178,2]
[347296460,1735665042201,-500.0,0.00019178,2]
[347296461,1735665042210,-500.0,0.00019178,2]
[347296462,1735665042220,-500.0,0.00019178,2]
[347296463,1735665042229,-500.0,0.00019178,2]
[347296464,1735665042238,-512.78180776,0.00019178,2]
[347296465,1735665042247,-500.0,0.00019178,2]
[347296466,1735665042256,-500.0,0.00019178,2]
[347296467,1735665042265,-511.14841742,0.00019178,2]
[347296468,1735665042274,-502.47722534,0.00019178,2]
[347296469,1735665042283,-500.0,0.00019178,2]
[347296470,1735665042292,-500.0,0.00019178,2]
[347296471,1735665042302,-483.09680624,0.00019178,2]
[347296472,1735665042311,-500.0,0.00019178,2]
[347296473,1735665042320,-500.0,0.00019178,2]
[347296474,1735665042329,-1289.07,0.00019178,2]
[347296475,1735665042339,-500.0,0.00019178,2]
[347296476,1735665042348,-500.0,0.00019178,2]
[347296477,1735665042358,-500.0,0.00019178,2]
[347296478,1735665042367,-1200.41,0.00019178,2]
[347296479,1735665042376,-500.0,0.00019178,2]
[347296480,1735665042386,-1196.82,0.00019178,2]
[347296481,1735665042395,-547.89,0.00019178,2]
[347296482,1735665042404,-506.33768834,0.00019178,2]
[347296483,1735665042413,-500.0,0.00019178,2]
[347296484,1735665042422,-399.46814351,0.00019178,2]
[347296485,1735665042431,-500.0,0.00019178,2]
[347296486,1735665042440,-970.37,0.00019178,2]
[347296487,1735665042449,-909.69,0.00019178,2]
[347296488,1735665042460,-500.0,0.00019178,2]
[347296489,1735665042473,-500.0,0.00019178,2]
[347296490,1735665042481,-500.0,0.00019178,2]
[347296491,1735665042491,-150.47083017,0.00019178,2]
[347296492,1735665042500,-500.0,0.00019178,2]
[347296493,1735665042510,-512.93948762,0.00019178,2]
[347296494,1735665042519,-652.4,0.00019178,2]
[347296495,1735665042528,-911.65,0.00019178,2]
[347296496,1735665042538,-500.0,0.00019178,2]
[347296497,1735665042547,-4416.32,0.00019178,2]
[347296498,1735665042556,-507.55,0.00019178,2]
[347296499,1735665042565,-500.0,0.00019178,2]
[347296500,1735665042575,-500.0,0.00019178,2]
[347296501,1735665042584,-519.17158636,0.00019178,2]
[347296502,1735665042593,-501.25993747,0.00019178,2]
[347296503,1735665042602,-500.0,0.00019178,2]
[347296504,1735665042612,-591.46,0.00019178,2]
[347296505,1735665042621,-10250.27,0.00019178,2]
[347296511,1735665042712,-500.0,0.00019178,2]
[347296512,1735665042731,-1359.6,0.00019178,2]
[347296513,1735665042740,-591.39217371,0.00019178,2]
[347296514,1735665042752,-500.0,0.00019178,2]
[347296515,1735665042761,-500.0,0.00019178,2]
[347296516,1735665042770,-500.0,0.00019178,2]
[347296517,1735665042780,-500.0,0.00019178,2]
[347296518,1735665042790,-243.22659194,0.00019178,2]
[347296519,1735665042799,-1636.8,0.00019178,2]
[347296520,1735665042809,-3361.62,0.00019178,2]
[347296521,1735665042818,-500.0,0.00019178,2]
[347296522,1735665042827,-998.59,0.00019178,2]